fUSD/lending_fUSD_20251215
["ID","MTS","AMOUNT","RATE_DAILY","PERIOD"]
[398545663,1765821037869,-500.0,0.00016173,2]
[398545664,1765821037879,-70.18485744,0.00016173,2]
[398545666,1765821037891,-350.20808019,0.00016173,2]
[398545667,1765821037903,-79.60706237,0.00016173,2]
[398545668,1765821037912,-500.0,0.00016254,2]
[398545669,1765821037922,-930.1,0.000163,2]
[398545670,1765821037931,-151.0,0.00016438,2]
[398545671,1765821037941,-500.0,0.00016438,2]
[398545672,1765821037950,-110.46964375,0.00016438,2]
[398545673,1765821037962,-389.53035625,0.00016438,2]
[398545674,1765821037971,-500.0,0.00016438,2]
[398545675,1765821037980,-94.50964175,0.00016438,2]
[398545676,1765821037996,-405.49035825,0.00016438,2]
[398545677,1765821038005,-500.0,0.00016438,2]
[398545678,1765821038014,-500.0,0.00016438,2]
[398545679,1765821038023,-500.0,0.00016438,2]
[398545680,1765821038033,-500.0,0.00016438,2]
[398545681,1765821038043,-155.10006445,0.00016438,2]
[398545682,1765821038056,-344.89993555,0.00016438,2]
[398545683,1765821038067,-44.53614445,0.00016438,2]
[398545684,1765821038081,-455.46385555,0.00016438,2]
[398545685,1765821038090,-500.0,0.00016438,2]
[398545686,1765821038101,-500.0,0.00016438,2]
[398545687,1765821038111,-500.0,0.00016438,2]
[398545688,1765821038121,-500.0,0.00016438,2]
[398545689,1765821038131,-500.0,0.00016438,2]
[398545690,1765821038141,-500.0,0.00016438,2]
[398545691,1765821038151,-500.0,0.00016438,2]
[398545692,1765821038160,-500.0,0.00016438,2]
[398545693,1765821038170,-500.0,0.00016438,2]
[398545694,1765821038180,-500.0,0.00016438,2]
[398545695,1765821038190,-500.0,0.00016438,2]
[398545696,1765821038199,-500.0,0.00016438,2]
[398545697,1765821038208,-500.0,0.00016438,2]
[398545698,1765821038218,-500.0,0.00016438,2]
[398545699,1765821038227,-500.0,0.00016438,2]
[398545700,1765821038237,-500.0,0.00016438,2]
[398545701,1765821038247,-500.0,0.00016438,2]
[398545703,1765821038257,-500.0,0.00016438,2]
[398545704,1765821038267,-500.0,0.00016438,2]
[398545705,1765821038276,-387.03700268,0.00016438,2]
[398545706,1765821038286,-500.0,0.00016438,2]
[398545708,1765821038295,-500.0,0.00016438,2]
[398545709,1765821038304,-500.0,0.00016438,2]
[398545711,1765821038313,-500.0,0.00016438,2]
[398545713,1765821038324,-500.0,0.00016438,2]
[398545715,1765821038333,-500.0,0.00016438,2]
[398545717,1765821038343,-500.0,0.00016438,2]
[398545719,1765821038354,-500.0,0.00016438,2]
[398545721,1765821038364,-500.0,0.00016438,2]
[398545723,1765821038374,-892.03,0.00016438,2]
[398545725,1765821038383,-199.77,0.00016445,2]
[398545727,1765821038393,-152.0,0.00016462,3]
[398545729,1765821038403,-495.13,0.000165,2]
[398545731,1765821038412,-359.05,0.000165,2]
[398545733,1765821038421,-500.0,0.00016528,2]
[398545735,1765821038430,-917.06656636,0.0001654,2]
[398545737,1765821038440,-160.10253989,0.00016593,2]
[398545739,1765821038450,-181.66161427,0.00016593,2]
[398545741,1765821038459,-500.0,0.00016593,2]
[398545743,1765821038470,-397.65414987,0.00016593,2]
[398545745,1765821038479,-200.0,0.00016594,2]
[398545747,1765821038489,-500.0,0.00016594,2]
[398545749,1765821038498,-200.0,0.00016594,2]
[398545751,1765821038508,-200.0,0.00016594,2]
[398545753,1765821038517,-151.0,0.00016594,2]
[398545755,1765821038526,-151.0,0.00016594,2]
[398545757,1765821038536,-151.0,0.00016594,2]
[398545759,1765821038545,-151.0,0.00016594,2]
[398545761,1765821038555,-151.0,0.00016594,2]
[398545763,1765821038564,-151.0,0.00016594,2]
[398545765,1765821038574,-151.0,0.00016594,2]
[398545767,1765821038583,-151.0,0.00016594,2]
[398545769,1765821038592,-151.0,0.00016594,2]
[398545771,1765821038601,-151.0,0.00016594,2]
[398545773,1765821038610,-151.0,0.00016594,2]
[398545775,1765821038620,-151.0,0.00016594,2]
[398545777,1765821038629,-151.0,0.00016594,2]
[398545779,1765821038638,-151.0,0.00016594,2]
[398545781,1765821038648,-151.0,0.00016594,2]
[398545783,1765821038657,-151.0,0.00016594,2]
[398545785,1765821038666,-151.0,0.00016594,2]
[398545787,1765821038676,-151.0,0.00016594,2]
[398545789,1765821038685,-151.0,0.00016594,2]
[398545791,1765821038695,-151.0,0.00016594,2]
[398545793,1765821038705,-151.0,0.00016594,2]
[398545795,1765821038715,-151.0,0.00016594,2]
[398545797,1765821038724,-151.0,0.00016594,2]
[398545799,1765821038733,-151.0,0.00016594,2]
[398545801,1765821038743,-151.0,0.00016594,2]
[398545803,1765821038752,-500.0,0.00016594,2]
[398545805,1765821038761,-151.0,0.00016594,2]
[398545807,1765821038770,-500.0,0.00016594,2]
[398545809,1765821038780,-151.0,0.00016594,2]
[398545811,1765821038789,-500.0,0.00016594,2]
[398545813,1765821038798,-151.0,0.00016594,2]
[398545815,1765821038808,-500.0,0.00016594,2]
[398545817,1765821038818,-151.0,0.00016594,2]
[398545818,1765821038829,-238.59034609,0.00016594,2]
[398545819,1765821038838,-500.0,0.00016594,2]
[398545820,1765821038848,-500.0,0.00016594,2]
[398545821,1765821038858,-500.0,0.00016594,2]
[398545822,1765821038867,-500.0,0.00016594,2]
[398545823,1765821038878,-500.0,0.00016594,2]
[398545824,1765821038888,-500.0,0.00016594,2]
[398545825,1765821038897,-500.0,0.00016594,2]
[398545826,1765821038907,-500.0,0.00016594,2]
[398545827,1765821038917,-500.0,0.00016594,2]
[398545828,1765821038927,-500.0,0.00016594,2]
[398545829,1765821038937,-500.0,0.00016594,2]
[398545830,1765821038947,-536.94265308,0.00016594,2]
[398545831,1765821038956,-5888.0,0.00016604,2]
[398545832,1765821038965,-227.0,0.00016614,2]
[398545833,1765821038975,-1748.0,0.00016639,2]
[398545836,1765821039509,-531.13299061,0.00016669,2]
[398545837,1765821039569,-152.0,0.00016671,4]
[398545839,1765821039579,-500.0,0.00016712,2]
[398545840,1765821039589,-256.96660006,0.00016712,2]
[398545841,1765821039598,-150.0,0.00016712,2]
[398545842,1765821039607,-150.0,0.00016712,2]
[398545843,1765821039617,-500.0,0.00016712,2]
[398545844,1765821039626,-500.0,0.00016712,2]
[398545845,1765821039635,-150.0,0.00016712,2]
[398545846,1765821039644,-150.0,0.00016712,2]
[398545847,1765821039653,-430.0,0.00016712,2]
[398545848,1765821039662,-1911.0,0.00016712,2]
[398545849,1765821039671,-150.0,0.00016712,2]
[398545850,1765821039681,-150.0,0.00016712,2]
[398545851,1765821039690,-500.0,0.00016712,2]
[398545852,1765821039699,-500.0,0.00016712,2]
[398545853,1765821039708,-892.03,0.00016712,2]
[398545854,1765821039718,-150.0,0.00016712,2]
[398545855,1765821039727,-150.0,0.00016712,2]
[398545856,1765821039737,-150.0,0.00016712,2]
[398545857,1765821039746,-157.61215021,0.00016712,2]
[398545858,1765821039755,-150.0,0.00016712,2]
[398545859,1765821039764,-150.0,0.00016712,2]
[398545860,1765821039773,-487.0,0.00016712,2]
[398545861,1765821039782,-500.0,0.00016712,2]
[398545862,1765821039792,-217.20717151,0.00016721,2]
[398545863,1765821039801,-1000.0,0.00016721,2]
[398545864,1765821039810,-150.0,0.00016726,2]
[398545865,1765821039820,-1897.697,0.00016743,2]
[398545866,1765821039829,-174.426,0.00016743,2]
[398545867,1765821039839,-1675.35702627,0.00016752,2]
[398545868,1765821039849,-15167.57750663,0.00016779,2]
[398545869,1765821039858,-500.0,0.00016795,2]
[398545870,1765821039868,-7980.72,0.00016799,2]
[398545871,1765821039877,-8244.02444946,0.00016813,2]
[398545872,1765821039886,-553.64373807,0.0001682,2]
[398545873,1765821039896,-1000.0,0.00016829,2]
[398545874,1765821039905,-2028.45790377,0.0001683,2]
[398545888,1765821042894,-187.52365644,0.00016594,2]
[398545889,1765821042903,-11645.28143724,0.0001683,2]
[398545890,1765821042914,-5039.929095,0.0001683,2]
[398545891,1765821042944,-5182.02606762,0.0001683,2]
[398545892,1765821042953,-500.0,0.00016849,2]
[398545893,1765821042962,-150.0,0.00016849,2]
[398545894,1765821042972,-150.0,0.00016849,2]
[398545895,1765821042981,-500.0,0.00016849,2]
[398545896,1765821042990,-500.0,0.00016849,2]
[398545897,1765821042999,-150.0,0.00016849,2]
[398545898,1765821043009,-430.0,0.00016849,2]
[398545899,1765821043018,-1911.0,0.00016849,2]
[398545900,1765821043027,-150.0,0.00016849,2]
[398545901,1765821043037,-296.0,0.00016849,2]
[398545902,1765821043046,-500.0,0.00016849,2]
[398545904,1765821043057,-44.15222127,0.00016849,2]
[398545906,1765821043070,-455.84777873,0.00016849,2]
[398545907,1765821043080,-296.25651046,0.00016849,2]
[398545908,1765821043089,-200.0,0.00016849,2]
[398545909,1765821043099,-500.0,0.00016849,2]
[398545910,1765821043109,-266.89571081,0.00016849,2]
[398545911,1765821043130,-220.10428919,0.00016849,2]
[398545912,1765821043141,-150.0,0.00016863,2]
[398545913,1765821043151,-200.0,0.00016864,2]
[398545914,1765821043160,-152.0,0.0001688,5]
[398545915,1765821043169,-200.80196082,0.00016888,2]
[398545916,1765821043180,-0.83901359,0.00016888,2]
[398545917,1765821043189,-2133.73847889,0.00016899,2]
[398545918,1765821043200,-9007.92830764,0.00016899,2]
[398545919,1765821043209,-6766.0798,0.000169,2]
[398545920,1765821043219,-2000.0,0.000169,2]
[398545921,1765821043228,-2000.0,0.000169,2]
[398545922,1765821043237,-2000.0,0.000169,2]
[398545923,1765821043247,-5893.7223,0.000169,2]
[398545924,1765821043256,-2000.0,0.000169,3]
[398545925,1765821043265,-2000.0,0.000169,3]
[398545926,1765821043274,-2000.0,0.000169,3]
[398545927,1765821043284,-2000.0,0.000169,2]
[398545928,1765821043293,-2000.0,0.000169,2]
[398545929,1765821043303,-2000.0,0.000169,2]
[398545930,1765821043312,-2000.0,0.000169,2]
[398545931,1765821043321,-2844.5601,0.000169,2]
[398545932,1765821043331,-1000.0,0.000169,2]
[398545933,1765821043340,-883.38049468,0.000169,2]
[398545934,1765821043350,-635.0672,0.000169,2]
[398545935,1765821043359,-10317.0,0.000169,2]
[398545936,1765821043369,-527.57313586,0.00016983,2]
[398545937,1765821043378,-500.0,0.00016986,2]
[398545938,1765821043387,-150.0,0.00016986,2]
[398545939,1765821043396,-150.0,0.00016986,2]
[398545940,1765821043405,-500.0,0.00016986,2]
[398545941,1765821043415,-500.0,0.00016986,2]
[398545942,1765821043424,-213.1975105,0.00016986,2]
[398545943,1765821043433,-430.0,0.00016986,2]
[398545944,1765821043443,-1911.0,0.00016986,2]
[398545945,1765821043452,-200.0,0.00016986,2]
[398545946,1765821043461,-500.0,0.00016986,2]
[398545947,1765821043470,-500.0,0.00016986,2]
[398545948,1765821043479,-500.0,0.00016986,2]
[398545949,1765821043488,-487.0,0.00016986,2]
[398545950,1765821043498,-625.33,0.00016986,2]
[398545951,1765821043507,-892.03,0.00016986,2]
[398545952,1765821043516,-53360.95,0.00016986,2]
[398545953,1765821043525,-151.0,0.00016993,2]
[398545954,1765821043535,-1077.5764269,0.00016995,5]
[398545955,1765821043544,-176.08,0.00016995,2]
[398545956,1765821043553,-11489.7785202,0.00016996,2]
[398545957,1765821043562,-92589.9004838,0.00016996,2]
[398545958,1765821043571,-37688.1319486,0.00016996,2]
[398545959,1765821043580,-198725.4969845,0.00016996,2]
[398545960,1765821043589,-181341.3385422,0.00016996,2]
[398545961,1765821043597,-9589.121542,0.00016996,2]
[398545962,1765821043607,-1500.0,0.00016996,2]
[398545963,1765821043615,-1500.0,0.00016996,2]
[398545964,1765821043624,-1500.0,0.00016996,2]
[398545965,1765821043633,-505734.5574718,0.00016996,2]
[398545966,1765821043643,-901.197652,0.00016996,2]
[398545967,1765821043652,-151.0,0.00016997,2]
[398545968,1765821043660,-150.0,0.00017,2]
[398545969,1765821043670,-3038799.0844354,0.00017,2]
[398545970,1765821043691,-4304.3,0.00017,2]
[398545971,1765821043747,-556.82997543,0.00017,2]
[398545972,1765821044537,-345.5261616,0.00017,2]
[398545973,1765821044557,-4304.3,0.00017,2]
[398545974,1765821044568,-331.8895825,0.00017,2]
[398545975,1765821044598,-404.2423,0.00017,2]
[398545976,1765821044613,-379.982586,0.00017,2]
[398545981,1765821045610,-464.18,0.00016438,2]
[398545982,1765821045625,-44976.28763845,0.00017,2]
[398545983,1765821045638,-2151.40875121,0.00017,2]
[398545984,1765821045650,-17003.70028845,0.00017,2]
[398545985,1765821045663,-412079.74914878,0.00017,2]
[398545986,1765821045675,-93379.64019877,0.00017,2]
[398545987,1765821045876,-1720.0,0.00017,2]
[398545988,1765821045930,-293.38212691,0.00017,2]
[398546126,1765821961187,150.0,0.00015288,2]
[398546127,1765821961248,150.0,0.00015442,2]
[398546128,1765821961318,150.0,0.00015597,2]
[398546129,1765821962164,150.0,0.00015288,2]
[398546130,1765821962286,150.0,0.00015288,2]
[398546132,1765821962862,150.0,0.00015377,2]
[398546133,1765821962914,150.0,0.00015466,2]
[398546134,1765821962967,150.0,0.00015556,2]
[398546135,1765821963004,150.0,0.00015645,2]
[398546136,1765821968660,253.87,0.00015586,2]
[398546137,1765821968933,-150.0,0.00015735,2]
[398546138,1765821968956,-141.77313332,0.00015743,2]
[398546139,1765821969749,150.0,0.00015288,2]
[398546140,1765821969816,150.0,0.00015571,2]
[398546141,1765821969944,259.27927663,0.00015288,2]
[398546142,1765821971411,151.17525831,0.00015288,2]
[398546143,1765821971605,-158.22686668,0.00015743,2]
[398546144,1765821971635,-111.61885011,0.00015751,2]
[398546145,1765821973940,179.90570441,0.00015288,2]
[398546146,1765821982844,150.0,0.00015288,2]
[398546147,1765821982881,150.0,0.00015288,2]
[398546148,1765821983627,-38.38114989,0.00015751,2]
[398546149,1765821985768,150.0,0.00015288,2]
[398546150,1765821985803,150.0,0.00015288,2]
[398546151,1765821989485,166.66,0.00015072,2]
[398546152,1765821989751,166.66,0.00015389,2]
[398546153,1765821989969,166.66,0.00015706,2]
[398546193,1765822231770,-500.0,0.00015771,2]
[398546194,1765822231780,-195.0,0.00015772,2]
[398546195,1765822231790,-250.0,0.00015773,2]
[398546196,1765822231799,-195.0,0.00015781,2]
[398546197,1765822231809,-250.0,0.00015783,2]
[398546198,1765822231818,-838.89991091,0.00015804,2]
[398546200,1765822231827,-1200.0,0.00015816,2]
[398546202,1765822231837,-300.0,0.00015816,2]
[398546203,1765822231846,-5056.41149375,0.00015817,2]
[398546204,1765822231865,-2356.91850625,0.00015817,2]
[398546205,1765822231875,-1204.98,0.00015817,2]
[398546206,1765822231884,-150.0,0.00015824,2]
[398546207,1765822231893,-150.0,0.00015854,2]
[398546208,1765822231903,-1902.73,0.00015862,2]
[398546209,1765822231912,-202.43337348,0.00015865,2]
[398546210,1765822231955,-4494.78662652,0.00015865,2]
[398546211,1765822231964,-150.0,0.00015905,2]
[398546212,1765822231975,-150.0,0.00015913,2]
[398546213,1765822231984,-150.0,0.00016003,2]
[398546214,1765822231994,-166.66,0.00016024,2]
[398546215,1765822232003,-150.0,0.0001606,2]
[398546216,1765822232012,-150.0,0.00016092,2]
[398546217,1765822232021,-150.0,0.00016137,2]
[398546218,1765822232031,-150.0,0.00016137,2]
[398546219,1765822232040,-300.0,0.00016149,2]
[398546220,1765822232049,-1748.0,0.00016149,2]
[398546221,1765822232060,-667.42772658,0.00016149,2]
[398546222,1765822232070,-500.0,0.00016173,2]
[398546223,1765822232079,-500.0,0.00016173,2]
[398546224,1765822232088,-500.0,0.00016173,2]
[398546225,1765822232098,-500.0,0.00016175,2]
[398546226,1765822232107,-500.0,0.00016175,2]
[398546227,1765822232120,-210.48892064,0.00016175,2]
[398546228,1765822232129,-500.0,0.00016175,2]
[398546229,1765822232139,-500.0,0.00016175,2]
[398546230,1765822232148,-348.29842632,0.00016175,2]
[398546231,1765822232158,-500.0,0.00016175,2]
[398546232,1765822232168,-500.0,0.00016175,2]
[398546233,1765822232177,-500.0,0.00016175,2]
[398546235,1765822232187,-500.0,0.00016175,2]
[398546237,1765822232197,-500.0,0.00016175,2]
[398546239,1765822232206,-500.0,0.00016175,2]
[398546242,1765822232215,-500.0,0.00016175,2]
[398546245,1765822232224,-500.0,0.00016175,2]
[398546248,1765822232233,-500.0,0.00016175,2]
[398546251,1765822232243,-500.0,0.00016175,2]
[398546254,1765822232252,-500.0,0.00016175,2]
[398546257,1765822232261,-500.0,0.00016175,2]
[398546259,1765822232271,-500.0,0.00016175,2]
[398546261,1765822232280,-500.0,0.00016175,2]
[398546263,1765822232290,-500.0,0.00016175,2]
[398546265,1765822232299,-500.0,0.00016175,2]
[398546267,1765822232308,-500.0,0.00016175,2]
[398546268,1765822232317,-500.0,0.00016175,2]
[398546269,1765822232327,-500.0,0.00016175,2]
[398546270,1765822232336,-500.0,0.00016175,2]
[398546271,1765822232345,-500.0,0.00016175,2]
[398546272,1765822232355,-500.0,0.00016175,2]
[398546273,1765822232367,-500.0,0.00016175,2]
[398546274,1765822232377,-500.0,0.00016175,2]
[398546275,1765822232386,-500.0,0.00016175,2]
[398546276,1765822232396,-500.0,0.00016175,2]
[398546277,1765822232405,-500.0,0.00016175,2]
[398546278,1765822232415,-500.0,0.00016175,2]
[398546279,1765822232425,-500.0,0.00016175,2]
[398546280,1765822232439,-500.0,0.00016175,2]
[398546281,1765822232452,-500.0,0.00016175,2]
[398546282,1765822232462,-500.0,0.00016175,2]
[398546283,1765822232474,-500.0,0.00016175,2]
[398546284,1765822232485,-500.0,0.00016175,2]
[398546285,1765822232495,-500.0,0.00016175,2]
[398546286,1765822232504,-500.0,0.00016175,2]
[398546287,1765822232516,-500.0,0.00016175,2]
[398546288,1765822232525,-500.0,0.00016175,2]
[398546289,1765822232535,-500.0,0.00016175,2]
[398546290,1765822232544,-500.0,0.00016175,2]
[398546291,1765822232553,-500.0,0.00016175,2]
[398546292,1765822232563,-500.0,0.00016175,2]
[398546293,1765822232571,-528.48459444,0.00016175,2]
[398546294,1765822232581,-500.0,0.00016175,2]
[398546295,1765822232590,-500.0,0.00016175,2]
[398546296,1765822232599,-500.0,0.00016175,2]
[398546297,1765822232608,-500.0,0.00016175,2]
[398546298,1765822232619,-500.0,0.00016175,2]
[398546299,1765822232628,-276.13535897,0.00016175,2]
[398546300,1765822232637,-500.0,0.00016175,2]
[398546301,1765822232648,-500.0,0.00016175,2]
[398546302,1765822232657,-500.0,0.00016175,2]
[398546303,1765822232668,-500.0,0.00016175,2]
[398546304,1765822232677,-500.0,0.00016175,2]
[398546305,1765822232686,-500.0,0.00016175,2]
[398546306,1765822232695,-500.0,0.00016175,2]
[398546307,1765822232704,-500.0,0.00016175,2]
[398546308,1765822232714,-500.0,0.00016175,2]
[398546309,1765822232723,-500.0,0.00016175,2]
[398546310,1765822232732,-500.0,0.00016175,2]
[398546311,1765822232742,-500.0,0.00016175,2]
[398546312,1765822232751,-500.0,0.00016175,2]
[398546313,1765822232761,-500.0,0.00016175,2]
[398546314,1765822232770,-500.0,0.00016175,2]
[398546315,1765822232780,-500.0,0.00016175,2]
[398546316,1765822232789,-500.0,0.00016175,2]
[398546317,1765822232799,-500.0,0.00016176,2]
[398546318,1765822232808,-168.0,0.00016176,2]
[398546319,1765822232817,-168.0,0.00016177,2]
[398546320,1765822232827,-150.0,0.00016182,2]
[398546321,1765822232837,-168.0,0.00016187,2]
[398546322,1765822232847,-166.68,0.00016199,2]
[398546323,1765822232856,-150.0,0.00016214,2]
[398546324,1765822232867,-150.0,0.00016271,2]
[398546325,1765822232877,-151.25,0.00016301,2]
[398546326,1765822232887,-166.66,0.00016341,2]
[398546327,1765822232896,-150.0,0.0001636,2]
[398546328,1765822232905,-150.0,0.00016369,2]
[398546329,1765822232915,-168.0,0.00016373,2]
[398546330,1765822232926,-168.0,0.00016384,2]
[398546331,1765822232935,-168.0,0.00016415,2]
[398546332,1765822232945,-150.0,0.0001642,2]
[398546333,1765822232954,-168.0,0.00016429,2]
[398546334,1765822232963,-500.0,0.00016438,2]
[398546335,1765822232972,-500.0,0.00016438,2]
[398546336,1765822232982,-500.0,0.00016438,2]
[398546337,1765822232991,-500.0,0.00016438,2]
[398546338,1765822233000,-500.0,0.00016438,2]
[398546339,1765822233011,-500.0,0.00016438,2]
[398546340,1765822233020,-500.0,0.00016438,2]
[398546341,1765822233029,-500.0,0.00016438,2]
[398546342,1765822233038,-500.0,0.00016438,2]
[398546343,1765822233048,-500.0,0.00016438,2]
[398546344,1765822233057,-500.0,0.00016438,2]
[398546345,1765822233067,-500.0,0.00016438,2]
[398546346,1765822233076,-500.0,0.00016438,2]
[398546347,1765822233086,-500.0,0.00016438,2]
[398546348,1765822233096,-500.0,0.00016438,2]
[398546349,1765822233106,-500.0,0.00016438,2]
[398546350,1765822233116,-500.0,0.00016438,2]
[398546351,1765822233125,-500.0,0.00016438,2]
[398546352,1765822233135,-500.0,0.00016438,2]
[398546353,1765822233145,-500.0,0.00016438,2]
[398546354,1765822233154,-500.0,0.00016438,2]
[398546355,1765822233163,-500.0,0.00016438,2]
[398546356,1765822233173,-500.0,0.00016438,2]
[398546357,1765822233183,-500.0,0.00016438,2]
[398546358,1765822233192,-500.0,0.00016438,2]
[398546359,1765822233202,-500.0,0.00016438,2]
[398546360,1765822233212,-500.0,0.00016438,2]
[398546361,1765822233222,-500.0,0.00016438,2]
[398546362,1765822233231,-500.0,0.00016438,2]
[398546363,1765822233241,-500.0,0.00016438,2]
[398546364,1765822233251,-500.0,0.00016438,2]
[398546365,1765822233260,-500.0,0.00016438,2]
[398546366,1765822233270,-500.0,0.00016438,2]
[398546367,1765822233280,-500.0,0.00016438,2]
[398546368,1765822233288,-500.0,0.00016438,2]
[398546369,1765822233298,-500.0,0.00016438,2]
[398546370,1765822233307,-500.0,0.00016438,2]
[398546371,1765822233316,-500.0,0.00016438,2]
[398546372,1765822233325,-500.0,0.00016438,2]
[398546373,1765822233335,-500.0,0.00016438,2]
[398546374,1765822233344,-208.29812357,0.00016438,2]
[398546375,1765822233354,-500.0,0.00016438,2]
[398546376,1765822233364,-500.0,0.00016438,2]
[398546377,1765822233374,-4722.25,0.00016438,2]
[398546378,1765822233383,-1217.45,0.00016438,2]
[398546379,1765822233393,-3657.0,0.00016442,2]
[398546380,1765822233403,-500.0,0.0001645,2]
[398546381,1765822233412,-150.0,0.0001645,2]
[398546382,1765822233422,-1255.0322,0.00016521,2]
[398546383,1765822233434,-150.0,0.00016523,2]
[398546384,1765822233443,-150.0,0.00016539,2]
[398546385,1765822233453,-9342.3265,0.00016557,2]
[398546386,1765822233463,-168.0,0.00016578,2]
[398546387,1765822233474,-500.0,0.00016603,2]
[398546388,1765822233484,-2964.4798,0.00016621,2]
[398546389,1765822233493,-150.0,0.00016629,2]
[398546390,1765822233503,-765.35560302,0.00016657,2]
[398546401,1765822240609,-251.00000008,0.00016657,2]
[398546402,1765822240915,-79.8543969,0.00016657,2]
[398546403,1765822240925,-166.66,0.00016658,2]
[398546404,1765822240936,-151.25634972,0.0001666,2]
[398546405,1765822240947,-1563.20260023,0.0001666,2]
[398546406,1765822240958,-429.51187128,0.0001666,2]
[398546407,1765822241002,-113.14875458,0.0001666,2]
[398546408,1765822241012,-231.0,0.00016663,2]
[398546409,1765822241022,-168.0,0.00016674,2]
[398546410,1765822241032,-150.0,0.00016677,2]
[398546411,1765822241041,-254.72624541,0.00016682,2]
[398546412,1765822241053,-251.0,0.00016682,2]
[398546413,1765822241064,-532.00086048,0.00016682,2]
[398546414,1765822241076,-857.81402166,0.00016682,2]
[398546415,1765822241087,-604.45887245,0.00016682,2]
[398546416,1765822241096,-168.0,0.00016691,2]
[398546417,1765822241105,-1748.0,0.00016697,2]
[398546418,1765822241114,-151.0,0.000167,2]
[398546419,1765822241126,-200.0,0.000167,2]
[398546420,1765822241135,-500.0,0.000167,2]
[398546421,1765822241144,-200.0,0.000167,2]
[398546422,1765822241154,-151.0,0.000167,2]
[398546423,1765822241163,-151.0,0.000167,2]
[398546424,1765822241173,-151.0,0.000167,2]
[398546425,1765822241182,-151.0,0.000167,2]
[398546426,1765822241191,-151.0,0.000167,2]
[398546427,1765822241200,-151.0,0.000167,2]
[398546428,1765822241209,-151.0,0.000167,2]
[398546429,1765822241218,-289.58663307,0.000167,2]
[398546430,1765822241228,-500.0,0.000167,2]
[398546431,1765822241238,-544.47749946,0.000167,2]
[398546432,1765822241247,-553.64373807,0.000167,2]
[398546433,1765822241256,-1000.0,0.000167,2]
[398546434,1765822241266,-1000.0,0.000167,2]
[398546435,1765822241275,-1000.0,0.000167,2]
[398546436,1765822241284,-1000.0,0.000167,2]
[398546437,1765822241294,-1000.0,0.000167,2]
[398546438,1765822241303,-1000.0,0.000167,2]
[398546439,1765822241312,-1000.0,0.000167,2]
[398546440,1765822241321,-200.0,0.000167,2]
[398546441,1765822241330,-1000.0,0.000167,2]
[398546442,1765822241340,-1000.0,0.000167,2]
[398546443,1765822241349,-1000.0,0.000167,2]
[398546444,1765822241359,-1000.0,0.000167,2]
[398546445,1765822241369,-1000.0,0.000167,2]
[398546446,1765822241380,-464.18,0.000167,2]
[398546447,1765822241389,-464.18,0.000167,2]
[398546448,1765822241398,-928.36,0.000167,2]
[398546449,1765822241407,-150.0,0.00016703,2]
[398546450,1765822241416,-3657.0,0.00016707,2]